[Event "Open Nuevo Centro. Jornada 1"]
[Site "Chess.com"]
[Date "2020.06.19"]
[Round "3"]
[White "Moreno Garc�a, Gonzalo "]
[Black "Furio Martinez, Francisco"]
[Result "0-1"]
[WhiteElo "579"]
[BlackElo "948"]
[TimeControl "180+2"]
[EndTime "11:04:27 PDT"]
[Termination "Victoria de Marcos-F2010 por tiempo"]

1. e4 {[%clk 0:03:00.7]} 1... e6 {[%clk 0:02:57.2]} 2. d4 {[%clk 0:02:55.6]}
2... d5 {[%clk 0:02:43.5]} 3. e5 {[%clk 0:02:54.7]} 3... Nd7 {[%clk 0:02:38.5]}
4. Nf3 {[%clk 0:02:50.7]} 4... f6 {[%clk 0:02:36.9]} 5. Nc3 {[%clk 0:02:40.2]}
5... b6 {[%clk 0:02:37.4]} 6. Bb5 {[%clk 0:02:27.5]} 6... Bb7 {[%clk 0:02:34.3]}
7. exf6 {[%clk 0:02:18.3]} 7... Nxf6 {[%clk 0:02:32.3]} 8. Bg5 {[%clk
0:02:13.4]} 8... Be7 {[%clk 0:02:24.9]} 9. Bxf6 {[%clk 0:02:09.9]} 9... Bxf6
{[%clk 0:02:23.6]} 10. Qe2 {[%clk 0:02:02.3]} 10... O-O {[%clk 0:02:22.1]} 11.
O-O {[%clk 0:02:00.6]} 11... Qe8 {[%clk 0:02:09.3]} 12. h3 {[%clk 0:01:50.1]}
12... Rc8 {[%clk 0:02:04.4]} 13. Rad1 {[%clk 0:01:48.3]} 13... c6 {[%clk
0:01:59.9]} 14. Bd3 {[%clk 0:01:43.6]} 14... c5 {[%clk 0:01:59]} 15. dxc5 {[%clk
0:01:39.2]} 15... bxc5 {[%clk 0:01:58.7]} 16. b3 {[%clk 0:01:36.1]} 16... Bxc3
{[%clk 0:01:54.7]} 17. g3 {[%clk 0:01:09.1]} 17... d4 {[%clk 0:01:31.9]} 18. h4
{[%clk 0:00:55]} 18... Bxf3 {[%clk 0:01:30.4]} 19. Qe5 {[%clk 0:00:41.8]} 19...
Nxe5 {[%clk 0:01:29.7]} 20. Bxh7+ {[%clk 0:00:39.4]} 20... Kxh7 {[%clk
0:01:28.1]} 21. Rd3 {[%clk 0:00:34.4]} 21... Nxd3 {[%clk 0:01:26.6]} 22. Rd1
{[%clk 0:00:33.8]} 22... Bxd1 {[%clk 0:01:25.6]} 23. Kh1 {[%clk 0:00:33.6]}
23... Bxc2 {[%clk 0:01:13.8]} 24. Kg2 {[%clk 0:00:32.8]} 24... Bxb3 {[%clk
0:01:05.1]} 25. axb3 {[%clk 0:00:32.2]} 25... Nxf2 {[%clk 0:01:01.1]} 26. Kh2
{[%clk 0:00:29.3]} 26... Nh1 {[%clk 0:01:01.1]} 27. Kxh1 {[%clk 0:00:29.3]}
27... c4 {[%clk 0:01:02]} 28. b4 {[%clk 0:00:27.4]} 28... a5 {[%clk 0:01:00.6]}
29. b5 {[%clk 0:00:25.5]} 29... Rc6 {[%clk 0:00:57.2]} 30. bxc6 {[%clk
0:00:23.4]} 30... Qxc6+ {[%clk 0:00:56.5]} 31. Kh2 {[%clk 0:00:22.5]} 31... Rf1
{[%clk 0:00:55.6]} 32. Kh3 {[%clk 0:00:20.8]} 32... Qh1+ {[%clk 0:00:53.2]} 33.
Kg4 {[%clk 0:00:19.3]} 33... Rf4+ {[%clk 0:00:54.3]} 34. Kxf4 {[%clk 0:00:19.2]}
34... e5+ {[%clk 0:00:55]} 35. Kxe5 {[%clk 0:00:19.5]} 35... Bb4 {[%clk
0:00:54.2]} 36. Ke6 {[%clk 0:00:18.7]} 36... Be7 {[%clk 0:00:52.5]} 37. Kxe7
{[%clk 0:00:18.6]} 37... Qc6 {[%clk 0:00:53.3]} 38. Kf7 {[%clk 0:00:18.6]} 38...
Qh6 {[%clk 0:00:53.2]} 39. Ke8 {[%clk 0:00:18.8]} 39... Qg6+ {[%clk 0:00:51.4]}
40. Ke7 {[%clk 0:00:18.5]} 40... Kg8 {[%clk 0:00:50.5]} 41. Kd7 {[%clk
0:00:17.9]} 41... Qf6 {[%clk 0:00:50.4]} 42. Ke8 {[%clk 0:00:15.7]} 42... Qf7+
{[%clk 0:00:48.5]} 43. Kd8 {[%clk 0:00:15.5]} 43... Kh7 {[%clk 0:00:45.8]} 44.
Kc8 {[%clk 0:00:14]} 44... Qe7 {[%clk 0:00:47]} 45. Kb8 {[%clk 0:00:14]} 45...
Qd7 {[%clk 0:00:46.9]} 46. Ka8 {[%clk 0:00:14.2]} 46... Kg6 {[%clk 0:00:45.2]}
47. Kb8 {[%clk 0:00:14.1]} 47... Kf6 {[%clk 0:00:45.8]} 48. Ka8 {[%clk
0:00:14.2]} 48... Ke6 {[%clk 0:00:46.5]} 49. Kb8 {[%clk 0:00:14.5]} 49... Kd6
{[%clk 0:00:46]} 50. Ka8 {[%clk 0:00:10.3]} 50... Kc6 {[%clk 0:00:46.6]} 0

[Event "Open Nuevo Centro. Jornada 1"]
[Site "Chess.com"]
[Date "2020.06.19"]
[Round "3"]
[White "Deusa Ballesteros, Lucas "]
[Black "Gutierrez Lacambra, Jose Antonio"]
[Result "1-0"]
[WhiteElo "1457"]
[BlackElo "1234"]
[TimeControl "180+2"]
[EndTime "11:04:29 PDT"]
[Termination "Victoria de facundillo2009 por jaque mate"]

1. e4 {[%clk 0:02:47.8]} 1... c5 {[%clk 0:02:59.9]} 2. Nf3 {[%clk 0:02:46.9]}
2... d6 {[%clk 0:03:00.9]} 3. d4 {[%clk 0:02:47.8]} 3... cxd4 {[%clk 0:03:02.4]}
4. Nxd4 {[%clk 0:02:49.7]} 4... Nf6 {[%clk 0:03:03.8]} 5. Nc3 {[%clk 0:02:49.7]}
5... a6 {[%clk 0:03:04.8]} 6. Be2 {[%clk 0:02:39.3]} 6... e5 {[%clk 0:03:04.5]}
7. Nb3 {[%clk 0:02:37.5]} 7... Be6 {[%clk 0:03:04.5]} 8. Be3 {[%clk 0:02:36.8]}
8... Nc6 {[%clk 0:03:01.3]} 9. O-O {[%clk 0:02:35.9]} 9... Be7 {[%clk
0:03:02.3]} 10. f3 {[%clk 0:02:32.2]} 10... Qc7 {[%clk 0:02:58.3]} 11. Nd5
{[%clk 0:02:30.9]} 11... Bxd5 {[%clk 0:02:49.3]} 12. exd5 {[%clk 0:02:20.8]}
12... Na5 {[%clk 0:02:07.5]} 13. Nxa5 {[%clk 0:02:13.1]} 13... Qxa5 {[%clk
0:02:06.8]} 14. c4 {[%clk 0:02:09.9]} 14... Rc8 {[%clk 0:02:00.8]} 15. b3 {[%clk
0:02:09.8]} 15... O-O {[%clk 0:01:57.1]} 16. Qe1 {[%clk 0:02:04.6]} 16... Qc7
{[%clk 0:01:39.2]} 17. Rc1 {[%clk 0:01:58.2]} 17... b6 {[%clk 0:01:12.6]} 18.
Qg3 {[%clk 0:01:44.7]} 18... Rfe8 {[%clk 0:01:08]} 19. Qf2 {[%clk 0:01:32.3]}
19... Rb8 {[%clk 0:01:06]} 20. Rfd1 {[%clk 0:01:27.5]} 20... Bf8 {[%clk
0:01:04.4]} 21. a3 {[%clk 0:01:08.4]} 21... Qb7 {[%clk 0:00:47.2]} 22. Qe1
{[%clk 0:00:59]} 22... Rec8 {[%clk 0:00:37.8]} 23. b4 {[%clk 0:00:55.9]} 23...
Nd7 {[%clk 0:00:31.9]} 24. f4 {[%clk 0:00:45.4]} 24... exf4 {[%clk 0:00:26.6]}
25. Bxf4 {[%clk 0:00:43.8]} 25... Re8 {[%clk 0:00:24]} 26. Qf2 {[%clk
0:00:38.7]} 26... Ne5 {[%clk 0:00:22.5]} 27. Bh5 {[%clk 0:00:30.8]} 27... Rbc8
{[%clk 0:00:11.6]} 28. Bxe5 {[%clk 0:00:27.4]} 28... dxe5 {[%clk 0:00:12.3]} 29.
Bg4 {[%clk 0:00:23.1]} 29... Rcd8 {[%clk 0:00:11.3]} 30. Re1 {[%clk 0:00:16.5]}
30... f6 {[%clk 0:00:11.3]} 31. Bf3 {[%clk 0:00:17.3]} 31... Qd7 {[%clk
0:00:11.4]} 32. h3 {[%clk 0:00:16.7]} 32... a5 {[%clk 0:00:11.8]} 33. Bg4 {[%clk
0:00:17.2]} 33... Qc7 {[%clk 0:00:12.4]} 34. Be6+ {[%clk 0:00:17.3]} 34... Kh8
{[%clk 0:00:13.3]} 35. bxa5 {[%clk 0:00:17.4]} 35... bxa5 {[%clk 0:00:14.2]} 36.
a4 {[%clk 0:00:17.9]} 36... Be7 {[%clk 0:00:13.4]} 37. c5 {[%clk 0:00:17.6]}
37... Rc8 {[%clk 0:00:12.3]} 38. d6 {[%clk 0:00:18.1]} 38... Bxd6 {[%clk
0:00:13.4]} 39. cxd6 {[%clk 0:00:18.1]} 39... Qxd6 {[%clk 0:00:14.2]} 40. Bxc8
{[%clk 0:00:18.6]} 40... Qb8 {[%clk 0:00:09.2]} 41. Bg4 {[%clk 0:00:17.7]} 41...
Qb4 {[%clk 0:00:08.9]} 42. Red1 {[%clk 0:00:13.6]} 42... Rg8 {[%clk 0:00:09.4]}
43. Qd2 {[%clk 0:00:13.4]} 43... f5 {[%clk 0:00:07.7]} 44. Qxb4 {[%clk
0:00:13.4]} 44... axb4 {[%clk 0:00:08.5]} 45. Bxf5 {[%clk 0:00:15.1]} 45... g6
{[%clk 0:00:09.5]} 46. Bb1 {[%clk 0:00:15.1]} 46... Rb8 {[%clk 0:00:10.1]} 47.
Rc7 {[%clk 0:00:13.6]} 47... Re8 {[%clk 0:00:07.6]} 48. Rdd7 {[%clk 0:00:14.6]}
48... Kg8 {[%clk 0:00:08.7]} 49. Rg7+ {[%clk 0:00:14]} 49... Kf8 {[%clk
0:00:09.8]} 50. Rcf7# {[%clk 0:00:13.9]} 1

[Event "Open Nuevo Centro. Jornada 1"]
[Site "Chess.com"]
[Date "2020.06.19"]
[Round "3"]
[White "Camison Zornoza, Cesar"]
[Black "Donate Moreno, Silvia"]
[Result "0-1"]
[WhiteElo "1389"]
[BlackElo "1778"]
[TimeControl "180+2"]
[EndTime "11:04:36 PDT"]
[Termination "Victoria de 2camarones por tiempo"]

1. e4 {[%clk 0:03:01.9]} 1... c5 {[%clk 0:03:00.5]} 2. d4 {[%clk 0:03:02.1]}
2... cxd4 {[%clk 0:03:01.1]} 3. c3 {[%clk 0:03:03]} 3... dxc3 {[%clk 0:03:03]}
4. Nxc3 {[%clk 0:03:03.5]} 4... Nc6 {[%clk 0:03:03.9]} 5. Nf3 {[%clk 0:03:04.7]}
5... d6 {[%clk 0:03:01.8]} 6. Bc4 {[%clk 0:03:05.4]} 6... e6 {[%clk 0:03:02]} 7.
O-O {[%clk 0:03:05.8]} 7... Nf6 {[%clk 0:03:02.6]} 8. Qe2 {[%clk 0:03:07]} 8...
Be7 {[%clk 0:03:03.1]} 9. Rd1 {[%clk 0:03:08.1]} 9... Qc7 {[%clk 0:03:01.1]} 10.
Nb5 {[%clk 0:03:00.3]} 10... Qb8 {[%clk 0:03:01.3]} 11. Bf4 {[%clk 0:02:58.5]}
11... Ne5 {[%clk 0:02:43.7]} 12. Nxe5 {[%clk 0:02:20.9]} 12... dxe5 {[%clk
0:02:42.9]} 13. Bg5 {[%clk 0:02:22]} 13... O-O {[%clk 0:02:37.2]} 14. Rac1
{[%clk 0:02:18.9]} 14... a6 {[%clk 0:02:36.6]} 15. Nc3 {[%clk 0:02:14.2]} 15...
b5 {[%clk 0:02:36.1]} 16. Bb3 {[%clk 0:02:14.8]} 16... Bb7 {[%clk 0:02:35.6]}
17. Bxf6 {[%clk 0:02:15.9]} 17... Bxf6 {[%clk 0:02:35]} 18. Qg4 {[%clk
0:02:15.4]} 18... Rd8 {[%clk 0:02:16.2]} 19. Ne2 {[%clk 0:02:11.7]} 19... Rxd1+
{[%clk 0:01:52.1]} 20. Rxd1 {[%clk 0:02:12.1]} 20... Qc7 {[%clk 0:01:47.6]} 21.
Ng3 {[%clk 0:02:12.2]} 21... Rd8 {[%clk 0:01:05]} 22. Rf1 {[%clk 0:02:11.5]}
22... Qe7 {[%clk 0:00:56.6]} 23. Nh5 {[%clk 0:02:04.7]} 23... Rd4 {[%clk
0:00:51.8]} 24. f3 {[%clk 0:02:02.6]} 24... g6 {[%clk 0:00:40.6]} 25. Rc1 {[%clk
0:01:39]} 25... Bg5 {[%clk 0:00:24.7]} 26. f4 {[%clk 0:01:09.1]} 26... exf4
{[%clk 0:00:19.8]} 27. Nxf4 {[%clk 0:01:04.3]} 27... Bxf4 {[%clk 0:00:20.3]} 28.
Qxf4 {[%clk 0:01:03.7]} 28... e5 {[%clk 0:00:21.3]} 29. Qf2 {[%clk 0:00:57.6]}
29... Rxe4 {[%clk 0:00:19.9]} 30. Rf1 {[%clk 0:00:27.1]} 30... Rf4 {[%clk
0:00:20.2]} 31. Qe2 {[%clk 0:00:26.7]} 31... Qc5+ {[%clk 0:00:20.4]} 32. Kh1
{[%clk 0:00:26.7]} 32... Rxf1+ {[%clk 0:00:21.1]} 33. Qxf1 {[%clk 0:00:27.3]}
33... Bd5 {[%clk 0:00:21.6]} 34. Bxd5 {[%clk 0:00:22.6]} 34... Qxd5 {[%clk
0:00:23.5]} 35. b3 {[%clk 0:00:22.7]} 35... Kg7 {[%clk 0:00:24.1]} 36. h3 {[%clk
0:00:24.1]} 36... e4 {[%clk 0:00:25]} 37. Qc1 {[%clk 0:00:21]} 37... Qe5 {[%clk
0:00:24.8]} 38. Qe3 {[%clk 0:00:20.7]} 38... f5 {[%clk 0:00:25.2]} 39. Qa7+
{[%clk 0:00:19.5]} 39... Kh6 {[%clk 0:00:25.9]} 40. Qe3+ {[%clk 0:00:20.2]}
40... f4 {[%clk 0:00:26.4]} 41. Qb6 {[%clk 0:00:16.3]} 41... e3 {[%clk
0:00:26.5]} 42. Qd8 {[%clk 0:00:13.6]} 42... e2 {[%clk 0:00:20.3]} 43. Qf8+
{[%clk 0:00:14.2]} 43... Kh5 {[%clk 0:00:18.9]} 44. g4+ {[%clk 0:00:11.6]} 44...
fxg3 {[%clk 0:00:19.5]} 45. Qf3+ {[%clk 0:00:11.9]} 45... Kg5 {[%clk 0:00:20.1]}
46. Qg4+ {[%clk 0:00:11.2]} 46... Kf6 {[%clk 0:00:21]} 47. Qf3+ {[%clk 0:00:12]}
47... Ke7 {[%clk 0:00:20.7]} 48. Qb7+ {[%clk 0:00:12.3]} 48... Ke6 {[%clk
0:00:21.5]} 49. Qc8+ {[%clk 0:00:08.3]} 49... Kd5 {[%clk 0:00:21.2]} 50. Qb7+
{[%clk 0:00:08]} 50... Kd4 {[%clk 0:00:21.5]} 51. Qb6+ {[%clk 0:00:04.9]} 51...
Ke4 {[%clk 0:00:21.7]} 0

[Event "Open Nuevo Centro. Jornada 1"]
[Site "Chess.com"]
[Date "2020.06.19"]
[Round "3"]
[White "Donate Moreno, David"]
[Black "Hassomal Daswani, Birjkumar"]
[Result "0-1"]
[WhiteElo "1486"]
[BlackElo "1839"]
[TimeControl "180+2"]
[EndTime "11:04:44 PDT"]
[Termination "Victoria de daz000007 por abandono"]

1. e4 {[%clk 0:03:01.9]} 1... c5 {[%clk 0:03:00.1]} 2. Nf3 {[%clk 0:03:01.8]}
2... e6 {[%clk 0:03:00.5]} 3. d4 {[%clk 0:03:01.8]} 3... cxd4 {[%clk 0:03:00.6]}
4. Nxd4 {[%clk 0:03:03.5]} 4... Bc5 {[%clk 0:02:59.9]} 5. c4 {[%clk 0:03:02.3]}
5... Qb6 {[%clk 0:03:00.4]} 6. Nb5 {[%clk 0:02:37.7]} 6... Bxf2+ {[%clk
0:02:58.2]} 7. Ke2 {[%clk 0:02:38.7]} 7... Bc5 {[%clk 0:02:55.5]} 8. Bf4 {[%clk
0:02:38.5]} 8... Na6 {[%clk 0:02:47.8]} 9. Bd6 {[%clk 0:02:37]} 9... Ne7 {[%clk
0:02:37.9]} 10. Bxc5 {[%clk 0:02:36.8]} 10... Qxc5 {[%clk 0:02:36.1]} 11. Nd6+
{[%clk 0:02:36.4]} 11... Kf8 {[%clk 0:02:36.6]} 12. g3 {[%clk 0:02:25.5]} 12...
Qh5+ {[%clk 0:02:35.8]} 13. Kd2 {[%clk 0:02:23.7]} 13... Qxd1+ {[%clk
0:02:34.4]} 14. Kxd1 {[%clk 0:02:24]} 14... Nc5 {[%clk 0:02:32.4]} 15. b4 {[%clk
0:02:24.4]} 15... Na6 {[%clk 0:02:26]} 16. c5 {[%clk 0:02:23.1]} 16... b6 {[%clk
0:02:25]} 17. Nxc8 {[%clk 0:02:20.8]} 17... Nxb4 {[%clk 0:02:21.4]} 18. Nxe7
{[%clk 0:02:19.3]} 18... Kxe7 {[%clk 0:02:19.6]} 19. cxb6 {[%clk 0:02:19.8]}
19... axb6 {[%clk 0:02:20]} 20. Nc3 {[%clk 0:02:20]} 20... Rhc8 {[%clk
0:02:19.2]} 21. Kd2 {[%clk 0:02:18.3]} 21... Ra3 {[%clk 0:02:11.3]} 22. Rc1
{[%clk 0:02:00.7]} 22... Nxa2 {[%clk 0:02:04.1]} 23. Nxa2 {[%clk 0:01:55.3]}
23... Rxa2+ {[%clk 0:02:02.4]} 24. Kd1 {[%clk 0:01:55.4]} 24... Rxc1+ {[%clk
0:01:57.1]} 25. Kxc1 {[%clk 0:01:55.8]} 25... Kd6 {[%clk 0:01:40.4]} 26. Kb1
{[%clk 0:01:53.4]} 26... Rd2 {[%clk 0:01:30.9]} 27. Kc1 {[%clk 0:01:48]} 27...
Rf2 {[%clk 0:01:26.1]} 28. Bd3 {[%clk 0:01:42.7]} 28... Ke5 {[%clk 0:01:25]} 29.
Bc2 {[%clk 0:01:42.3]} 29... g5 {[%clk 0:01:14.7]} 30. h3 {[%clk 0:01:38.8]}
30... h5 {[%clk 0:01:11.8]} 31. Rg1 {[%clk 0:01:30.9]} 31... d6 {[%clk
0:01:11.4]} 32. g4 {[%clk 0:01:30.6]} 32... h4 {[%clk 0:01:09.8]} 33. Rh1 {[%clk
0:01:19.9]} 33... f6 {[%clk 0:01:08.4]} 34. Kb2 {[%clk 0:01:19.6]} 34... Rf3
{[%clk 0:01:08.1]} 35. Ba4 {[%clk 0:01:09.4]} 35... Kd4 {[%clk 0:01:06.5]} 36.
Rd1+ {[%clk 0:01:07.8]} 36... Kxe4 {[%clk 0:01:05.1]} 37. Bc6+ {[%clk
0:01:06.7]} 37... d5 {[%clk 0:01:05.7]} 38. Re1+ {[%clk 0:01:07.5]} 38... Kd4
{[%clk 0:01:04.1]} 39. Rxe6 {[%clk 0:01:06.3]} 39... Rxh3 {[%clk 0:01:02.6]} 40.
Rxf6 {[%clk 0:01:06.8]} 40... Rg3 {[%clk 0:01:01.5]} 41. Bd7 {[%clk 0:01:01.5]}
41... h3 {[%clk 0:01:00.2]} 42. Rf1 {[%clk 0:00:49.2]} 42... Rg2+ {[%clk
0:00:59]} 43. Kb3 {[%clk 0:00:45.3]} 43... h2 {[%clk 0:00:59.3]} 44. Rh1 {[%clk
0:00:43.6]} 44... Ke3 {[%clk 0:01:00.1]} 45. Bc6 {[%clk 0:00:43.7]} 45... Rd2
{[%clk 0:00:58.2]} 46. Kb4 {[%clk 0:00:34.3]} 46... Kf3 {[%clk 0:00:56.1]} 47.
Kc3 {[%clk 0:00:27.3]} 47... Ke3 {[%clk 0:00:51.5]} 48. Re1+ {[%clk 0:00:22]}
48... Re2 {[%clk 0:00:48.9]} 49. Rh1 {[%clk 0:00:22.6]} 49... d4+ {[%clk
0:00:48.2]} 50. Kc4 {[%clk 0:00:21.3]} 50... d3 {[%clk 0:00:48.7]} 51. Kc3
{[%clk 0:00:21.9]} 51... d2 {[%clk 0:00:48.9]} 52. Kc2 {[%clk 0:00:22.7]} 52...
Re1 {[%clk 0:00:47.8]} 53. Bf3 {[%clk 0:00:17.3]} 53... Kxf3 {[%clk 0:00:44.4]}
54. Rxh2 {[%clk 0:00:17.1]} 0

[Event "Open Nuevo Centro. Jornada 1"]
[Site "Chess.com"]
[Date "2020.06.19"]
[Round "3"]
[White "Blanco Solaz, Ram�n"]
[Black "Alegre Romaguera, Francesc"]
[Result "1-0"]
[WhiteElo "1983"]
[BlackElo "1222"]
[TimeControl "180+2"]
[EndTime "11:04:55 PDT"]
[Termination "Victoria de Rbs77 por tiempo"]

1. g3 {[%clk 0:03:01.9]} 1... Nf6 {[%clk 0:02:59.5]} 2. c4 {[%clk 0:03:02.8]}
2... g6 {[%clk 0:03:00]} 3. Bg2 {[%clk 0:03:03.6]} 3... Bg7 {[%clk 0:03:00.6]}
4. Nc3 {[%clk 0:03:04.4]} 4... d6 {[%clk 0:03:01.1]} 5. e4 {[%clk 0:03:05.5]}
5... O-O {[%clk 0:03:01.3]} 6. Nge2 {[%clk 0:03:07.1]} 6... Nbd7 {[%clk
0:03:01.2]} 7. O-O {[%clk 0:03:08.6]} 7... c6 {[%clk 0:02:57.4]} 8. h3 {[%clk
0:03:06.5]} 8... e5 {[%clk 0:02:56]} 9. d3 {[%clk 0:03:07.4]} 9... a5 {[%clk
0:02:53.7]} 10. Be3 {[%clk 0:03:02.4]} 10... Nb6 {[%clk 0:02:53]} 11. b3 {[%clk
0:02:58.7]} 11... Be6 {[%clk 0:02:43.4]} 12. f4 {[%clk 0:02:58.2]} 12... exf4
{[%clk 0:02:04.8]} 13. gxf4 {[%clk 0:03:00.1]} 13... d5 {[%clk 0:01:47.4]} 14.
c5 {[%clk 0:02:24.8]} 14... Nc8 {[%clk 0:01:35.4]} 15. f5 {[%clk 0:02:04.6]}
15... Bd7 {[%clk 0:01:17.8]} 16. e5 {[%clk 0:02:01.4]} 16... Bxf5 {[%clk
0:01:11.3]} 17. exf6 {[%clk 0:02:01.2]} 17... Bxf6 {[%clk 0:01:08.5]} 18. Bd4
{[%clk 0:01:52.3]} 18... Re8 {[%clk 0:00:48.5]} 19. Qd2 {[%clk 0:01:50.9]} 19...
Bg5 {[%clk 0:00:41.8]} 20. Qc2 {[%clk 0:01:32.2]} 20... Be3+ {[%clk 0:00:41.5]}
21. Kh1 {[%clk 0:01:18.7]} 21... Qg5 {[%clk 0:00:33.2]} 22. Rf3 {[%clk
0:01:15.4]} 22... Bxd4 {[%clk 0:00:24.7]} 23. Nxd4 {[%clk 0:01:17.3]} 23... Re3
{[%clk 0:00:23.3]} 24. Nxf5 {[%clk 0:01:09.9]} 24... Rxf3 {[%clk 0:00:18.4]} 25.
Bxf3 {[%clk 0:01:10.6]} 25... Qxf5 {[%clk 0:00:19.1]} 26. Bg4 {[%clk 0:01:11.7]}
26... Qf6 {[%clk 0:00:17.4]} 27. Re1 {[%clk 0:01:08.6]} 27... Ne7 {[%clk
0:00:17.8]} 28. Nd1 {[%clk 0:01:00]} 28... Nf5 {[%clk 0:00:18.2]} 29. Qf2 {[%clk
0:01:00.3]} 29... Kg7 {[%clk 0:00:15.6]} 30. Rf1 {[%clk 0:01:00.1]} 30... Ng3+
{[%clk 0:00:08.1]} 31. Kg2 {[%clk 0:00:54.6]} 31... Nxf1 {[%clk 0:00:08.6]} 32.
Qxf1 {[%clk 0:00:56.2]} 32... Qxf1+ {[%clk 0:00:09]} 33. Kxf1 {[%clk 0:00:57.7]}
33... f5 {[%clk 0:00:10.5]} 34. Bf3 {[%clk 0:00:57.9]} 34... Re8 {[%clk
0:00:11.3]} 35. Kf2 {[%clk 0:00:58.3]} 35... Kf6 {[%clk 0:00:12.4]} 36. Ne3
{[%clk 0:00:57.8]} 36... f4 {[%clk 0:00:12.1]} 37. Ng4+ {[%clk 0:00:52.9]} 37...
Kg5 {[%clk 0:00:12.8]} 38. Kg2 {[%clk 0:00:37]} 38... h5 {[%clk 0:00:13.2]} 39.
Nf2 {[%clk 0:00:38]} 39... Re1 {[%clk 0:00:10.8]} 40. Nd1 {[%clk 0:00:32.5]}
40... Re8 {[%clk 0:00:08]} 41. Kf2 {[%clk 0:00:29.8]} 41... Kf5 {[%clk
0:00:08.8]} 42. Nc3 {[%clk 0:00:26.6]} 42... Re3 {[%clk 0:00:07.5]} 43. Be2
{[%clk 0:00:23.8]} 43... Rxh3 {[%clk 0:00:07.7]} 44. Bf1 {[%clk 0:00:18.3]}
44... Rh2+ {[%clk 0:00:06]} 45. Bg2 {[%clk 0:00:17.2]} 45... h4 {[%clk
0:00:06.8]} 46. Kg1 {[%clk 0:00:18.4]} 46... Rxg2+ {[%clk 0:00:04.2]} 47. Kxg2
{[%clk 0:00:20.3]} 47... g5 {[%clk 0:00:05.2]} 48. Ne2 {[%clk 0:00:20.1]} 48...
Kg4 {[%clk 0:00:06]} 49. Ng1 {[%clk 0:00:18.8]} 49... Kf5 {[%clk 0:00:05]} 50.
Nf3 {[%clk 0:00:17.7]} 50... Kg4 {[%clk 0:00:04]} 51. Nh2+ {[%clk 0:00:18.9]}
51... Kf5 {[%clk 0:00:04.8]} 52. Kf3 {[%clk 0:00:20.5]} 52... h3 {[%clk
0:00:04.2]} 53. a3 {[%clk 0:00:19.8]} 53... d4 {[%clk 0:00:04.5]} 54. b4 {[%clk
0:00:20.3]} 54... a4 {[%clk 0:00:03]} 55. Ng4 {[%clk 0:00:21.7]} 1

[Event "Open Nuevo Centro. Jornada 1"]
[Site "Chess.com"]
[Date "2020.06.19"]
[Round "3"]
[White "Limaymanta Solis, Luis Anderson"]
[Black "Zakharash, Georgii"]
[Result "0-1"]
[WhiteElo "1073"]
[BlackElo "945"]
[TimeControl "180+2"]
[EndTime "11:05:03 PDT"]
[Termination "Victoria de georgiizakharash por jaque mate"]

1. e3 {[%clk 0:03:01.9]} 1... e5 {[%clk 0:02:57.7]} 2. b3 {[%clk 0:03:02.3]}
2... d5 {[%clk 0:02:56.1]} 3. Nf3 {[%clk 0:03:03.5]} 3... e4 {[%clk 0:02:56.5]}
4. Nd4 {[%clk 0:03:02.6]} 4... Nf6 {[%clk 0:02:49]} 5. Bb5+ {[%clk 0:03:03.7]}
5... c6 {[%clk 0:02:49.3]} 6. Bf1 {[%clk 0:03:02.6]} 6... Bc5 {[%clk 0:02:49.1]}
7. Bb2 {[%clk 0:03:00.4]} 7... Bg4 {[%clk 0:02:40.2]} 8. f3 {[%clk 0:02:58]}
8... Bh5 {[%clk 0:02:35.3]} 9. g4 {[%clk 0:02:58]} 9... Bg6 {[%clk 0:02:35]} 10.
Bh3 {[%clk 0:02:51.2]} 10... exf3 {[%clk 0:02:30.1]} 11. Qxf3 {[%clk 0:02:48.3]}
11... Be4 {[%clk 0:02:26.3]} 12. Qf1 {[%clk 0:02:38.6]} 12... Bxh1 {[%clk
0:02:24.9]} 13. Qxh1 {[%clk 0:02:36.3]} 13... O-O {[%clk 0:02:17.5]} 14. Na3
{[%clk 0:02:35]} 14... Bxd4 {[%clk 0:02:14.6]} 15. Bxd4 {[%clk 0:02:34.5]} 15...
Ne4 {[%clk 0:02:08.3]} 16. O-O-O {[%clk 0:02:23.1]} 16... Nf2 {[%clk 0:02:03.8]}
17. Qf1 {[%clk 0:02:07.3]} 17... Nxd1 {[%clk 0:02:01.2]} 18. Qxd1 {[%clk
0:02:04.7]} 18... Nd7 {[%clk 0:01:56.1]} 19. Bf1 {[%clk 0:02:02]} 19... Qa5
{[%clk 0:01:47.4]} 20. Bb2 {[%clk 0:01:55.5]} 20... b5 {[%clk 0:01:46.3]} 21. c3
{[%clk 0:01:49]} 21... b4 {[%clk 0:01:38.9]} 22. cxb4 {[%clk 0:01:49.1]} 22...
Qxb4 {[%clk 0:01:38.4]} 23. Kb1 {[%clk 0:01:49.5]} 23... Qe4+ {[%clk 0:01:23.2]}
24. Nc2 {[%clk 0:01:46.8]} 24... Qh1 {[%clk 0:01:17]} 25. Qe2 {[%clk 0:01:38.8]}
25... Qe4 {[%clk 0:01:08.9]} 26. Bh3 {[%clk 0:01:37.9]} 26... Ne5 {[%clk
0:00:59.5]} 27. g5 {[%clk 0:01:37.3]} 27... f6 {[%clk 0:00:55.3]} 28. g6 {[%clk
0:01:31.3]} 28... Nxg6 {[%clk 0:00:46.4]} 29. Ka1 {[%clk 0:01:24.2]} 29... f5
{[%clk 0:00:37.5]} 30. Nd4 {[%clk 0:01:23.3]} 30... c5 {[%clk 0:00:19.5]} 31.
Nf3 {[%clk 0:01:14.8]} 31... f4 {[%clk 0:00:19.2]} 32. Bg2 {[%clk 0:01:13.6]}
32... fxe3 {[%clk 0:00:19.9]} 33. Ng5 {[%clk 0:01:01.7]} 33... Qf5 {[%clk
0:00:20.9]} 34. Nf3 {[%clk 0:00:56]} 34... Qg4 {[%clk 0:00:20.2]} 35. dxe3
{[%clk 0:00:52.1]} 35... Rxf3 {[%clk 0:00:19.1]} 36. Bxf3 {[%clk 0:00:52.3]}
36... Qg1+ {[%clk 0:00:18.6]} 37. Qd1 {[%clk 0:00:46.1]} 37... Qxd1+ {[%clk
0:00:18.4]} 38. Bxd1 {[%clk 0:00:47.4]} 38... Rd8 {[%clk 0:00:16.8]} 39. a4
{[%clk 0:00:48.5]} 39... d4 {[%clk 0:00:18]} 40. e4 {[%clk 0:00:48]} 40... d3
{[%clk 0:00:18.4]} 41. e5 {[%clk 0:00:41.1]} 41... Nxe5 {[%clk 0:00:16.9]} 42.
Bxe5 {[%clk 0:00:37.6]} 42... Re8 {[%clk 0:00:17.8]} 43. Bd6 {[%clk 0:00:37.3]}
43... d2 {[%clk 0:00:17.9]} 44. Bg3 {[%clk 0:00:33.9]} 44... Re1 {[%clk
0:00:18.5]} 45. Bxe1 {[%clk 0:00:30.5]} 45... dxe1=Q {[%clk 0:00:18.3]} 46. Kb2
{[%clk 0:00:30.8]} 46... Qxd1 {[%clk 0:00:18.7]} 47. Kc3 {[%clk 0:00:31.4]}
47... Qe2 {[%clk 0:00:19.9]} 48. a5 {[%clk 0:00:30.8]} 48... Qxh2 {[%clk
0:00:21]} 49. Kc4 {[%clk 0:00:30.3]} 49... Qa2 {[%clk 0:00:21.8]} 50. Kxc5
{[%clk 0:00:26.9]} 50... Qxb3 {[%clk 0:00:22.9]} 51. Kd6 {[%clk 0:00:25.4]}
51... Qa4 {[%clk 0:00:24]} 52. Ke6 {[%clk 0:00:24.2]} 52... Qxa5 {[%clk
0:00:25.9]} 53. Kd6 {[%clk 0:00:25.5]} 53... Kf7 {[%clk 0:00:25.7]} 54. Kc6
{[%clk 0:00:26]} 54... Ke6 {[%clk 0:00:24.8]} 55. Kb7 {[%clk 0:00:24.2]} 55...
a6 {[%clk 0:00:26.1]} 56. Kc6 {[%clk 0:00:24.7]} 56... Qb5+ {[%clk 0:00:27.2]}
57. Kc7 {[%clk 0:00:23.8]} 57... Kd5 {[%clk 0:00:27.7]} 58. Kc8 {[%clk
0:00:21.6]} 58... Kc6 {[%clk 0:00:25.4]} 59. Kd8 {[%clk 0:00:22.4]} 59... Kd6
{[%clk 0:00:26.1]} 60. Kc8 {[%clk 0:00:19.6]} 60... Qc6+ {[%clk 0:00:26.3]} 61.
Kb8 {[%clk 0:00:19.6]} 61... Qc7+ {[%clk 0:00:27.2]} 62. Ka8 {[%clk 0:00:19.5]}
62... Qd7 {[%clk 0:00:27.5]} 63. Kb8 {[%clk 0:00:19.7]} 63... Kc6 {[%clk
0:00:28.7]} 64. Ka8 {[%clk 0:00:18.4]} 64... Qb7# {[%clk 0:00:30.6]} 0